{"text_format":"1","workbook":"xlsx","n_sheets":5,"sheets":["Instrucciones de USO","Plan de cuentas","RUTS","Asientos del Conty","ASIENTOS CONTAFACIL.UY"],"not_rendered":{"charts":0,"images":2,"macros":1,"external_links":0,"defined_names":2,"comments":0,"pivot_tables":0},"unopened":[],"bounds":{"document_bytes":16777216,"sheet_cells":100000,"rows_first":2000,"rows_last":500,"rows_between":2000,"halvings":0,"cell_chars":16384,"cell_head_chars":4096},"cells_cut":0,"cells_raw":0,"read":"whole","date_system":"1900"}

{"sheet":"Instrucciones de USO","index":0,"n_rows":28,"n_cols":5,"rows_kept":28,"cut":false,"hidden":false,"merged":[[0,1,0,5]]}
[null,"CONTAFACIL.UY"]
[]
[]
[null,null,1,"DESCARGAR XLS DE CONTY","PLAN DE CUENTAS"]
[null,null,2,"DESCARGAR XLS DE CONTY","ASIENTOS ( LOS MESES QUE QUIERAN)"]
[null,null,3,"DESCARGAR XLS DE CONTY","\"CLIENTES Y PROVEEDORES\" "]
[]
[null,null,4,null,"COPIAR ARCHIVOS EN CADA SOLAPA DE ESTE ARCHIVO."]
[null,null,5,null,"EJECURTAR MARCO \" CONTAFACIL\" "]
[null,null,null,null,"En la solapa VISTA ir a MACROS"]
[]
[]
[]
[null,null,null,null," "]
[]
[null,null,null,null,"Click en \"EJECUTAR\" "]
[]
[]
[]
[]
[]
[]
[]
[]
[]
[]
[null,null,6,"NUEVA PLANILLA XLS","COPIAR ASIENTOS CONTAFACIL.UY"]
[null,null,null,null,"No repetir RUTS "]

{"sheet":"Plan de cuentas","index":1,"n_rows":1,"n_cols":2,"rows_kept":1,"cut":false,"hidden":false,"merged":[]}
["Código","Nombre"]

{"sheet":"RUTS","index":2,"n_rows":1,"n_cols":2,"rows_kept":1,"cut":false,"hidden":false,"merged":[]}
["RUT","Razón social"]

{"sheet":"Asientos del Conty","index":3,"n_rows":1,"n_cols":13,"rows_kept":1,"cut":false,"hidden":false,"merged":[]}
["Día","Debe","Haber","RUT","S","Concepto","M","Total","N","IVA","Cotización","L","Tipo"]

{"sheet":"ASIENTOS CONTAFACIL.UY","index":4,"n_rows":672,"n_cols":7,"rows_kept":672,"cut":false,"hidden":false,"merged":[]}
["RUT","Debe","Haber",null,"Nombre empresa","Cuenta Debe","Cuenta Haber"]
[null,null,null,null,{"$f":"IFERROR(+VLOOKUP(A2,RUT,2,FALSE),\"\")","v":""},{"$f":"IFERROR(+VLOOKUP(B2,PLAN,2,FALSE),\"\")","v":""},{"$f":"IFERROR(+VLOOKUP(C2,PLAN,2,FALSE),\"\")","v":""}]
[null,null,null,null,"","",""]
[null,null,null,null,"","",""]
[null,null,null,null,"","",""]
[null,null,null,null,"","",""]
[null,null,null,null,"","",""]
[null,null,null,null,"","",""]
[null,null,null,null,"","",""]
[null,null,null,null,"","",""]
[null,null,null,null,"","",""]
[null,null,null,null,"","",""]
[null,null,null,null,"","",""]
[null,null,null,null,"","",""]
[null,null,null,null,"","",""]
[null,null,null,null,"","",""]
[null,null,null,null,"","",""]
[null,null,null,null,"","",""]
[null,null,null,null,"","",""]
[null,null,null,null,"","",""]
[null,null,null,null,"","",""]
[null,null,null,null,"","",""]
[null,null,null,null,"","",""]
[null,null,null,null,"","",""]
[null,null,null,null,"","",""]
[null,null,null,null,"","",""]
[null,null,null,null,"","",""]
[null,null,null,null,"","",""]
[null,null,null,null,"","",""]
[null,null,null,null,"","",""]
[null,null,null,null,"","",""]
[null,null,null,null,"","",""]
[null,null,null,null,"","",""]
[null,null,null,null,"","",""]
[null,null,null,null,"","",""]
[null,null,null,null,"","",""]
[null,null,null,null,"","",""]
[null,null,null,null,"","",""]
[null,null,null,null,"","",""]
[null,null,null,null,"","",""]
[null,null,null,null,"","",""]
[null,null,null,null,"","",""]
[null,null,null,null,"","",""]
[null,null,null,null,"","",""]
[null,null,null,null,"","",""]
[null,null,null,null,"","",""]
[null,null,null,null,"","",""]
[null,null,null,null,"","",""]
[null,null,null,null,"","",""]
[null,null,null,null,"","",""]
[null,null,null,null,"","",""]
[null,null,null,null,"","",""]
[null,null,null,null,"","",""]
[null,null,null,null,"","",""]
[null,null,null,null,"","",""]
[null,null,null,null,"","",""]
[null,null,null,null,"","",""]
[null,null,null,null,"","",""]
[null,null,null,null,"","",""]
[null,null,null,null,"","",""]
[null,null,null,null,"","",""]
[null,null,null,null,"","",""]
[null,null,null,null,"","",""]
[null,null,null,null,"","",""]
[null,null,null,null,"","",""]
[null,null,null,null,{"$f":"IFERROR(+VLOOKUP(A66,RUT,2,FALSE),\"\")","v":""},{"$f":"IFERROR(+VLOOKUP(B66,PLAN,2,FALSE),\"\")","v":""},{"$f":"IFERROR(+VLOOKUP(C66,PLAN,2,FALSE),\"\")","v":""}]
[null,null,null,null,"","",""]
[null,null,null,null,"","",""]
[null,null,null,null,"","",""]
[null,null,null,null,"","",""]
[null,null,null,null,"","",""]
[null,null,null,null,"","",""]
[null,null,null,null,"","",""]
[null,null,null,null,"","",""]
[null,null,null,null,"","",""]
[null,null,null,null,"","",""]
[null,null,null,null,"","",""]
[null,null,null,null,"","",""]
[null,null,null,null,"","",""]
[null,null,null,null,"","",""]
[null,null,null,null,"","",""]
[null,null,null,null,"","",""]
[null,null,null,null,"","",""]
[null,null,null,null,"","",""]
[null,null,null,null,"","",""]
[null,null,null,null,"","",""]
[null,null,null,null,"","",""]
[null,null,null,null,"","",""]
[null,null,null,null,"","",""]
[null,null,null,null,"","",""]
[null,null,null,null,"","",""]
[null,null,null,null,"","",""]
[null,null,null,null,"","",""]
[null,null,null,null,"","",""]
[null,null,null,null,"","",""]
[null,null,null,null,"","",""]
[null,null,null,null,"","",""]
[null,null,null,null,"","",""]
[null,null,null,null,"","",""]
[null,null,null,null,"","",""]
[null,null,null,null,"","",""]
[null,null,null,null,"","",""]
[null,null,null,null,"","",""]
[null,null,null,null,"","",""]
[null,null,null,null,"","",""]
[null,null,null,null,"","",""]
[null,null,null,null,"","",""]
[null,null,null,null,"","",""]
[null,null,null,null,"","",""]
[null,null,null,null,"","",""]
[null,null,null,null,"","",""]
[null,null,null,null,"","",""]
[null,null,null,null,"","",""]
[null,null,null,null,"","",""]
[null,null,null,null,"","",""]
[null,null,null,null,"","",""]
[null,null,null,null,"","",""]
[null,null,null,null,"","",""]
[null,null,null,null,"","",""]
[null,null,null,null,"","",""]
[null,null,null,null,"","",""]
[null,null,null,null,"","",""]
[null,null,null,null,"","",""]
[null,null,null,null,"","",""]
[null,null,null,null,"","",""]
[null,null,null,null,"","",""]
[null,null,null,null,"","",""]
[null,null,null,null,"","",""]
[null,null,null,null,"","",""]
[null,null,null,null,{"$f":"IFERROR(+VLOOKUP(A130,RUT,2,FALSE),\"\")","v":""},{"$f":"IFERROR(+VLOOKUP(B130,PLAN,2,FALSE),\"\")","v":""},{"$f":"IFERROR(+VLOOKUP(C130,PLAN,2,FALSE),\"\")","v":""}]
[null,null,null,null,"","",""]
[null,null,null,null,"","",""]
[null,null,null,null,"","",""]
[null,null,null,null,"","",""]
[null,null,null,null,"","",""]
[null,null,null,null,"","",""]
[null,null,null,null,"","",""]
[null,null,null,null,"","",""]
[null,null,null,null,"","",""]
[null,null,null,null,"","",""]
[null,null,null,null,"","",""]
[null,null,null,null,"","",""]
[null,null,null,null,"","",""]
[null,null,null,null,"","",""]
[null,null,null,null,"","",""]
[null,null,null,null,"","",""]
[null,null,null,null,"","",""]
[null,null,null,null,"","",""]
[null,null,null,null,"","",""]
[null,null,null,null,"","",""]
[null,null,null,null,"","",""]
[null,null,null,null,"","",""]
[null,null,null,null,"","",""]
[null,null,null,null,"","",""]
[null,null,null,null,"","",""]
[null,null,null,null,"","",""]
[null,null,null,null,"","",""]
[null,null,null,null,"","",""]
[null,null,null,null,"","",""]
[null,null,null,null,"","",""]
[null,null,null,null,"","",""]
[null,null,null,null,"","",""]
[null,null,null,null,"","",""]
[null,null,null,null,"","",""]
[null,null,null,null,"","",""]
[null,null,null,null,"","",""]
[null,null,null,null,"","",""]
[null,null,null,null,"","",""]
[null,null,null,null,"","",""]
[null,null,null,null,"","",""]
[null,null,null,null,"","",""]
[null,null,null,null,"","",""]
[null,null,null,null,"","",""]
[null,null,null,null,"","",""]
[null,null,null,null,"","",""]
[null,null,null,null,"","",""]
[null,null,null,null,"","",""]
[null,null,null,null,"","",""]
[null,null,null,null,"","",""]
[null,null,null,null,"","",""]
[null,null,null,null,"","",""]
[null,null,null,null,"","",""]
[null,null,null,null,"","",""]
[null,null,null,null,"","",""]
[null,null,null,null,"","",""]
[null,null,null,null,"","",""]
[null,null,null,null,"","",""]
[null,null,null,null,"","",""]
[null,null,null,null,"","",""]
[null,null,null,null,"","",""]
[null,null,null,null,"","",""]
[null,null,null,null,"","",""]
[null,null,null,null,"","",""]
[null,null,null,null,{"$f":"IFERROR(+VLOOKUP(A194,RUT,2,FALSE),\"\")","v":""},{"$f":"IFERROR(+VLOOKUP(B194,PLAN,2,FALSE),\"\")","v":""},{"$f":"IFERROR(+VLOOKUP(C194,PLAN,2,FALSE),\"\")","v":""}]
[null,null,null,null,"","",""]
[null,null,null,null,"","",""]
[null,null,null,null,"","",""]
[null,null,null,null,"","",""]
[null,null,null,null,"","",""]
[null,null,null,null,"","",""]
[null,null,null,null,"","",""]
[null,null,null,null,"","",""]
[null,null,null,null,"","",""]
[null,null,null,null,"","",""]
[null,null,null,null,"","",""]
[null,null,null,null,"","",""]
[null,null,null,null,"","",""]
[null,null,null,null,"","",""]
[null,null,null,null,"","",""]
[null,null,null,null,"","",""]
[null,null,null,null,"","",""]
[null,null,null,null,"","",""]
[null,null,null,null,"","",""]
[null,null,null,null,"","",""]
[null,null,null,null,"","",""]
[null,null,null,null,"","",""]
[null,null,null,null,"","",""]
[null,null,null,null,"","",""]
[null,null,null,null,"","",""]
[null,null,null,null,"","",""]
[null,null,null,null,"","",""]
[null,null,null,null,"","",""]
[null,null,null,null,"","",""]
[null,null,null,null,"","",""]
[null,null,null,null,"","",""]
[null,null,null,null,"","",""]
[null,null,null,null,"","",""]
[null,null,null,null,"","",""]
[null,null,null,null,"","",""]
[null,null,null,null,"","",""]
[null,null,null,null,"","",""]
[null,null,null,null,"","",""]
[null,null,null,null,"","",""]
[null,null,null,null,"","",""]
[null,null,null,null,"","",""]
[null,null,null,null,"","",""]
[null,null,null,null,"","",""]
[null,null,null,null,"","",""]
[null,null,null,null,"","",""]
[null,null,null,null,"","",""]
[null,null,null,null,"","",""]
[null,null,null,null,"","",""]
[null,null,null,null,"","",""]
[null,null,null,null,"","",""]
[null,null,null,null,"","",""]
[null,null,null,null,"","",""]
[null,null,null,null,"","",""]
[null,null,null,null,"","",""]
[null,null,null,null,"","",""]
[null,null,null,null,"","",""]
[null,null,null,null,"","",""]
[null,null,null,null,"","",""]
[null,null,null,null,"","",""]
[null,null,null,null,"","",""]
[null,null,null,null,"","",""]
[null,null,null,null,"","",""]
[null,null,null,null,"","",""]
[null,null,null,null,{"$f":"IFERROR(+VLOOKUP(A258,RUT,2,FALSE),\"\")","v":""},{"$f":"IFERROR(+VLOOKUP(B258,PLAN,2,FALSE),\"\")","v":""},{"$f":"IFERROR(+VLOOKUP(C258,PLAN,2,FALSE),\"\")","v":""}]
[null,null,null,null,"","",""]
[null,null,null,null,"","",""]
[null,null,null,null,"","",""]
[null,null,null,null,"","",""]
[null,null,null,null,"","",""]
[null,null,null,null,"","",""]
[null,null,null,null,"","",""]
[null,null,null,null,"","",""]
[null,null,null,null,"","",""]
[null,null,null,null,"","",""]
[null,null,null,null,"","",""]
[null,null,null,null,"","",""]
[null,null,null,null,"","",""]
[null,null,null,null,"","",""]
[null,null,null,null,"","",""]
[null,null,null,null,"","",""]
[null,null,null,null,"","",""]
[null,null,null,null,"","",""]
[null,null,null,null,"","",""]
[null,null,null,null,"","",""]
[null,null,null,null,"","",""]
[null,null,null,null,"","",""]
[null,null,null,null,"","",""]
[null,null,null,null,"","",""]
[null,null,null,null,"","",""]
[null,null,null,null,"","",""]
[null,null,null,null,"","",""]
[null,null,null,null,"","",""]
[null,null,null,null,"","",""]
[null,null,null,null,"","",""]
[null,null,null,null,"","",""]
[null,null,null,null,"","",""]
[null,null,null,null,"","",""]
[null,null,null,null,"","",""]
[null,null,null,null,"","",""]
[null,null,null,null,"","",""]
[null,null,null,null,"","",""]
[null,null,null,null,"","",""]
[null,null,null,null,"","",""]
[null,null,null,null,"","",""]
[null,null,null,null,"","",""]
[null,null,null,null,"","",""]
[null,null,null,null,"","",""]
[null,null,null,null,"","",""]
[null,null,null,null,"","",""]
[null,null,null,null,"","",""]
[null,null,null,null,"","",""]
[null,null,null,null,"","",""]
[null,null,null,null,"","",""]
[null,null,null,null,"","",""]
[null,null,null,null,"","",""]
[null,null,null,null,"","",""]
[null,null,null,null,"","",""]
[null,null,null,null,"","",""]
[null,null,null,null,"","",""]
[null,null,null,null,"","",""]
[null,null,null,null,"","",""]
[null,null,null,null,"","",""]
[null,null,null,null,"","",""]
[null,null,null,null,"","",""]
[null,null,null,null,"","",""]
[null,null,null,null,"","",""]
[null,null,null,null,"","",""]
[null,null,null,null,{"$f":"IFERROR(+VLOOKUP(A322,RUT,2,FALSE),\"\")","v":""},{"$f":"IFERROR(+VLOOKUP(B322,PLAN,2,FALSE),\"\")","v":""},{"$f":"IFERROR(+VLOOKUP(C322,PLAN,2,FALSE),\"\")","v":""}]
[null,null,null,null,"","",""]
[null,null,null,null,"","",""]
[null,null,null,null,"","",""]
[null,null,null,null,"","",""]
[null,null,null,null,"","",""]
[null,null,null,null,"","",""]
[null,null,null,null,"","",""]
[null,null,null,null,"","",""]
[null,null,null,null,"","",""]
[null,null,null,null,"","",""]
[null,null,null,null,"","",""]
[null,null,null,null,"","",""]
[null,null,null,null,"","",""]
[null,null,null,null,"","",""]
[null,null,null,null,"","",""]
[null,null,null,null,"","",""]
[null,null,null,null,"","",""]
[null,null,null,null,"","",""]
[null,null,null,null,"","",""]
[null,null,null,null,"","",""]
[null,null,null,null,"","",""]
[null,null,null,null,"","",""]
[null,null,null,null,"","",""]
[null,null,null,null,"","",""]
[null,null,null,null,"","",""]
[null,null,null,null,"","",""]
[null,null,null,null,"","",""]
[null,null,null,null,"","",""]
[null,null,null,null,"","",""]
[null,null,null,null,"","",""]
[null,null,null,null,"","",""]
[null,null,null,null,"","",""]
[null,null,null,null,"","",""]
[null,null,null,null,"","",""]
[null,null,null,null,"","",""]
[null,null,null,null,"","",""]
[null,null,null,null,"","",""]
[null,null,null,null,"","",""]
[null,null,null,null,"","",""]
[null,null,null,null,"","",""]
[null,null,null,null,"","",""]
[null,null,null,null,"","",""]
[null,null,null,null,"","",""]
[null,null,null,null,"","",""]
[null,null,null,null,"","",""]
[null,null,null,null,"","",""]
[null,null,null,null,"","",""]
[null,null,null,null,"","",""]
[null,null,null,null,"","",""]
[null,null,null,null,"","",""]
[null,null,null,null,"","",""]
[null,null,null,null,"","",""]
[null,null,null,null,"","",""]
[null,null,null,null,"","",""]
[null,null,null,null,"","",""]
[null,null,null,null,"","",""]
[null,null,null,null,"","",""]
[null,null,null,null,"","",""]
[null,null,null,null,"","",""]
[null,null,null,null,"","",""]
[null,null,null,null,"","",""]
[null,null,null,null,"","",""]
[null,null,null,null,"","",""]
[null,null,null,null,{"$f":"IFERROR(+VLOOKUP(A386,RUT,2,FALSE),\"\")","v":""},{"$f":"IFERROR(+VLOOKUP(B386,PLAN,2,FALSE),\"\")","v":""},{"$f":"IFERROR(+VLOOKUP(C386,PLAN,2,FALSE),\"\")","v":""}]
[null,null,null,null,"","",""]
[null,null,null,null,"","",""]
[null,null,null,null,"","",""]
[null,null,null,null,"","",""]
[null,null,null,null,"","",""]
[null,null,null,null,"","",""]
[null,null,null,null,"","",""]
[null,null,null,null,"","",""]
[null,null,null,null,"","",""]
[null,null,null,null,"","",""]
[null,null,null,null,"","",""]
[null,null,null,null,"","",""]
[null,null,null,null,"","",""]
[null,null,null,null,"","",""]
[null,null,null,null,"","",""]
[null,null,null,null,"","",""]
[null,null,null,null,"","",""]
[null,null,null,null,"","",""]
[null,null,null,null,"","",""]
[null,null,null,null,"","",""]
[null,null,null,null,"","",""]
[null,null,null,null,"","",""]
[null,null,null,null,"","",""]
[null,null,null,null,"","",""]
[null,null,null,null,"","",""]
[null,null,null,null,"","",""]
[null,null,null,null,"","",""]
[null,null,null,null,"","",""]
[null,null,null,null,"","",""]
[null,null,null,null,"","",""]
[null,null,null,null,"","",""]
[null,null,null,null,"","",""]
[null,null,null,null,"","",""]
[null,null,null,null,"","",""]
[null,null,null,null,"","",""]
[null,null,null,null,"","",""]
[null,null,null,null,"","",""]
[null,null,null,null,"","",""]
[null,null,null,null,"","",""]
[null,null,null,null,"","",""]
[null,null,null,null,"","",""]
[null,null,null,null,"","",""]
[null,null,null,null,"","",""]
[null,null,null,null,"","",""]
[null,null,null,null,"","",""]
[null,null,null,null,"","",""]
[null,null,null,null,"","",""]
[null,null,null,null,"","",""]
[null,null,null,null,"","",""]
[null,null,null,null,"","",""]
[null,null,null,null,"","",""]
[null,null,null,null,"","",""]
[null,null,null,null,"","",""]
[null,null,null,null,"","",""]
[null,null,null,null,"","",""]
[null,null,null,null,"","",""]
[null,null,null,null,"","",""]
[null,null,null,null,"","",""]
[null,null,null,null,"","",""]
[null,null,null,null,"","",""]
[null,null,null,null,"","",""]
[null,null,null,null,"","",""]
[null,null,null,null,"","",""]
[null,null,null,null,{"$f":"IFERROR(+VLOOKUP(A450,RUT,2,FALSE),\"\")","v":""},{"$f":"IFERROR(+VLOOKUP(B450,PLAN,2,FALSE),\"\")","v":""},{"$f":"IFERROR(+VLOOKUP(C450,PLAN,2,FALSE),\"\")","v":""}]
[null,null,null,null,"","",""]
[null,null,null,null,"","",""]
[null,null,null,null,"","",""]
[null,null,null,null,"","",""]
[null,null,null,null,"","",""]
[null,null,null,null,"","",""]
[null,null,null,null,"","",""]
[null,null,null,null,"","",""]
[null,null,null,null,"","",""]
[null,null,null,null,"","",""]
[null,null,null,null,"","",""]
[null,null,null,null,"","",""]
[null,null,null,null,"","",""]
[null,null,null,null,"","",""]
[null,null,null,null,"","",""]
[null,null,null,null,"","",""]
[null,null,null,null,"","",""]
[null,null,null,null,"","",""]
[null,null,null,null,"","",""]
[null,null,null,null,"","",""]
[null,null,null,null,"","",""]
[null,null,null,null,"","",""]
[null,null,null,null,"","",""]
[null,null,null,null,"","",""]
[null,null,null,null,"","",""]
[null,null,null,null,"","",""]
[null,null,null,null,"","",""]
[null,null,null,null,"","",""]
[null,null,null,null,"","",""]
[null,null,null,null,"","",""]
[null,null,null,null,"","",""]
[null,null,null,null,"","",""]
[null,null,null,null,"","",""]
[null,null,null,null,"","",""]
[null,null,null,null,"","",""]
[null,null,null,null,"","",""]
[null,null,null,null,"","",""]
[null,null,null,null,"","",""]
[null,null,null,null,"","",""]
[null,null,null,null,"","",""]
[null,null,null,null,"","",""]
[null,null,null,null,"","",""]
[null,null,null,null,"","",""]
[null,null,null,null,"","",""]
[null,null,null,null,"","",""]
[null,null,null,null,"","",""]
[null,null,null,null,"","",""]
[null,null,null,null,"","",""]
[null,null,null,null,"","",""]
[null,null,null,null,"","",""]
[null,null,null,null,"","",""]
[null,null,null,null,"","",""]
[null,null,null,null,"","",""]
[null,null,null,null,"","",""]
[null,null,null,null,"","",""]
[null,null,null,null,"","",""]
[null,null,null,null,"","",""]
[null,null,null,null,"","",""]
[null,null,null,null,"","",""]
[null,null,null,null,"","",""]
[null,null,null,null,"","",""]
[null,null,null,null,"","",""]
[null,null,null,null,"","",""]
[null,null,null,null,{"$f":"IFERROR(+VLOOKUP(A514,RUT,2,FALSE),\"\")","v":""},{"$f":"IFERROR(+VLOOKUP(B514,PLAN,2,FALSE),\"\")","v":""},{"$f":"IFERROR(+VLOOKUP(C514,PLAN,2,FALSE),\"\")","v":""}]
[null,null,null,null,"","",""]
[null,null,null,null,"","",""]
[null,null,null,null,"","",""]
[null,null,null,null,"","",""]
[null,null,null,null,"","",""]
[null,null,null,null,"","",""]
[null,null,null,null,"","",""]
[null,null,null,null,"","",""]
[null,null,null,null,"","",""]
[null,null,null,null,"","",""]
[null,null,null,null,"","",""]
[null,null,null,null,"","",""]
[null,null,null,null,"","",""]
[null,null,null,null,"","",""]
[null,null,null,null,"","",""]
[null,null,null,null,"","",""]
[null,null,null,null,"","",""]
[null,null,null,null,"","",""]
[null,null,null,null,"","",""]
[null,null,null,null,"","",""]
[null,null,null,null,"","",""]
[null,null,null,null,"","",""]
[null,null,null,null,"","",""]
[null,null,null,null,"","",""]
[null,null,null,null,"","",""]
[null,null,null,null,"","",""]
[null,null,null,null,"","",""]
[null,null,null,null,"","",""]
[null,null,null,null,"","",""]
[null,null,null,null,"","",""]
[null,null,null,null,"","",""]
[null,null,null,null,"","",""]
[null,null,null,null,"","",""]
[null,null,null,null,"","",""]
[null,null,null,null,"","",""]
[null,null,null,null,"","",""]
[null,null,null,null,"","",""]
[null,null,null,null,"","",""]
[null,null,null,null,"","",""]
[null,null,null,null,"","",""]
[null,null,null,null,"","",""]
[null,null,null,null,"","",""]
[null,null,null,null,"","",""]
[null,null,null,null,"","",""]
[null,null,null,null,"","",""]
[null,null,null,null,"","",""]
[null,null,null,null,"","",""]
[null,null,null,null,"","",""]
[null,null,null,null,"","",""]
[null,null,null,null,"","",""]
[null,null,null,null,"","",""]
[null,null,null,null,"","",""]
[null,null,null,null,"","",""]
[null,null,null,null,"","",""]
[null,null,null,null,"","",""]
[null,null,null,null,"","",""]
[null,null,null,null,"","",""]
[null,null,null,null,"","",""]
[null,null,null,null,"","",""]
[null,null,null,null,"","",""]
[null,null,null,null,"","",""]
[null,null,null,null,"","",""]
[null,null,null,null,"","",""]
[null,null,null,null,{"$f":"IFERROR(+VLOOKUP(A578,RUT,2,FALSE),\"\")","v":""},{"$f":"IFERROR(+VLOOKUP(B578,PLAN,2,FALSE),\"\")","v":""},{"$f":"IFERROR(+VLOOKUP(C578,PLAN,2,FALSE),\"\")","v":""}]
[null,null,null,null,"","",""]
[null,null,null,null,"","",""]
[null,null,null,null,"","",""]
[null,null,null,null,"","",""]
[null,null,null,null,"","",""]
[null,null,null,null,"","",""]
[null,null,null,null,"","",""]
[null,null,null,null,"","",""]
[null,null,null,null,"","",""]
[null,null,null,null,"","",""]
[null,null,null,null,"","",""]
[null,null,null,null,"","",""]
[null,null,null,null,"","",""]
[null,null,null,null,"","",""]
[null,null,null,null,"","",""]
[null,null,null,null,"","",""]
[null,null,null,null,"","",""]
[null,null,null,null,"","",""]
[null,null,null,null,"","",""]
[null,null,null,null,"","",""]
[null,null,null,null,"","",""]
[null,null,null,null,"","",""]
[null,null,null,null,"","",""]
[null,null,null,null,"","",""]
[null,null,null,null,"","",""]
[null,null,null,null,"","",""]
[null,null,null,null,"","",""]
[null,null,null,null,"","",""]
[null,null,null,null,"","",""]
[null,null,null,null,"","",""]
[null,null,null,null,"","",""]
[null,null,null,null,"","",""]
[null,null,null,null,"","",""]
[null,null,null,null,"","",""]
[null,null,null,null,"","",""]
[null,null,null,null,"","",""]
[null,null,null,null,"","",""]
[null,null,null,null,"","",""]
[null,null,null,null,"","",""]
[null,null,null,null,"","",""]
[null,null,null,null,"","",""]
[null,null,null,null,"","",""]
[null,null,null,null,"","",""]
[null,null,null,null,"","",""]
[null,null,null,null,"","",""]
[null,null,null,null,"","",""]
[null,null,null,null,"","",""]
[null,null,null,null,"","",""]
[null,null,null,null,"","",""]
[null,null,null,null,"","",""]
[null,null,null,null,"","",""]
[null,null,null,null,"","",""]
[null,null,null,null,"","",""]
[null,null,null,null,"","",""]
[null,null,null,null,"","",""]
[null,null,null,null,"","",""]
[null,null,null,null,"","",""]
[null,null,null,null,"","",""]
[null,null,null,null,"","",""]
[null,null,null,null,"","",""]
[null,null,null,null,"","",""]
[null,null,null,null,"","",""]
[null,null,null,null,"","",""]
[null,null,null,null,{"$f":"IFERROR(+VLOOKUP(A642,RUT,2,FALSE),\"\")","v":""},{"$f":"IFERROR(+VLOOKUP(B642,PLAN,2,FALSE),\"\")","v":""},{"$f":"IFERROR(+VLOOKUP(C642,PLAN,2,FALSE),\"\")","v":""}]
[null,null,null,null,"","",""]
[null,null,null,null,"","",""]
[null,null,null,null,"","",""]
[null,null,null,null,"","",""]
[null,null,null,null,"","",""]
[null,null,null,null,"","",""]
[null,null,null,null,"","",""]
[null,null,null,null,"","",""]
[null,null,null,null,"","",""]
[null,null,null,null,"","",""]
[null,null,null,null,"","",""]
[null,null,null,null,"","",""]
[null,null,null,null,"","",""]
[null,null,null,null,"","",""]
[null,null,null,null,"","",""]
[null,null,null,null,"","",""]
[null,null,null,null,"","",""]
[null,null,null,null,"","",""]
[null,null,null,null,"","",""]
[null,null,null,null,"","",""]
[null,null,null,null,"","",""]
[null,null,null,null,"","",""]
[null,null,null,null,"","",""]
[null,null,null,null,"","",""]
[null,null,null,null,"","",""]
[null,null,null,null,"","",""]
[null,null,null,null,"","",""]
[null,null,null,null,"","",""]
[null,null,null,null,"","",""]
[null,null,null,null,"","",""]